Cogmind - Beta 14 @@@ ROGUE MODE // 2024.12.06 @ 17:52:02 Player: blank Result: Destroyed by D-53 Grenadier with Mini Grenade Launcher Performance ------------- Evolutions (0) 0 Regions Visited (2) 400 Robots Destroyed (24) 120 Value Destroyed (561) 561 Prototype IDs (2) 40 Alien Tech Used (0) 0 Bonus (0) 0 TOTAL SCORE: 1121 Bonus ------- None Cogmind --------- Core Integrity 0/250 Matter 265/300 Energy 128/160 System Corruption 2% Temperature Cool (10) Movement Treading (240) Ox1 Location -10/Mines Parts ------- > --- POWER (1) -------- Light Nuclear Core > --- PROPULSION (2) --- Improved Treads > --- UTILITY (2) ------ Large Storage Unit Targeting Computer > --- WEAPON (2) ------- Light EM Pulse Cannon Grenade Launcher > --- INVENTORY (15) --- Light Ion Engine Light Treads Light Treads Light Treads Large Storage Unit Sensor Array Signal Interpreter Targeting Computer ECM Suite Light EM Pulse Cannon Light Assault Rifle Light Assault Rifle Datajack Peak State ------------ > --- POWER ------------ Light Nuclear Core > --- PROPULSION ------- Improved Treads Improved Treads > --- UTILITY ---------- Large Storage Unit Targeting Computer > --- WEAPON ----------- Light EM Pulse Cannon Grenade Launcher > --- INVENTORY -------- Light Ion Engine Light Treads Light Treads Light Treads Large Storage Unit Sensor Array Signal Interpreter Targeting Computer ECM Suite Light EM Pulse Cannon Light Assault Rifle Light Assault Rifle Datajack [Rating: 13] Favorites ----------- Power Light Ion Engine Engine Light Ion Engine Power Core Light Nuclear Core Propulsion Light Treads Treads Light Treads Utility Large Storage Unit Storage Large Storage Unit Processor Targeting Computer Protection Weapon Shielding Weapon Light Assault Rifle Energy Cannon Light EM Pulse Cannon Ballistic Gun Light Assault Rifle Launcher Grenade Launcher Special Melee Weapon Datajack Build | -11 -10 -10 ------- Run | Yrd Mat Min Slots Evolved . | . . . Power . | . . . Propulsion . | . . . Utility . | . . . Weapon . | . . . Parts Attached 25 | 5 14 6 Power 5 | 1 2 2 Engine 4 | 1 2 1 Core 1 | . . 1 Reactor . | . . . Propulsion 5 | 2 3 . Treads 5 | 2 3 . Leg . | . . . Wheel . | . . . Hover . | . . . Flight . | . . . Utility 5 | 1 4 . Device . | . . . Storage 3 | 1 2 . Processor 1 | . 1 . Hackware . | . . . Protection 1 | . 1 . Artifact . | . . . Weapon 10 | 1 5 4 Energy Gun . | . . . Energy Cannon 3 | . 2 1 Ballistic Gun 2 | 1 1 . Ballistic Cannon . | . . . Launcher 3 | . 1 2 Special Weapon . | . . . Impact Weapon . | . . . Slashing Weapon . | . . . Piercing Weapon . | . . . Special Melee Weapon 2 | . 1 1 Unidentified Prototypes . | . . . Parts Lost 4 | . 2 2 Power 2 | . 2 . Propulsion 1 | . . 1 Utility . | . . . Weapon 1 | . . 1 Highest Loss Streak 2 | . 1 2 To Critical Strikes . | . . . Average Slot Usage (%) 96 | . 94 99 Engine 9 | . 10 5 Core 2 | . . 8 Treads 27 | . 27 28 Storage 14 | . 14 14 Processor 9 | . 8 14 Protection 3 | . 4 . Energy Cannon 5 | . 5 6 Ballistic Gun 12 | . 16 . Launcher 8 | . 4 19 Special Melee Weapon 1 | . . 2 Peak Build Rating 13 | 5 12 13 Average Rating 8 | 3 8 11 On Entrance 5 | . 5 12 Naked Turns . | . . . Heaviest Build 33 | 9 33 31 Greatest Support 46 | 40 46 46 Greatest Overweight (x) 10 | 1 10 10 Average Overweight (x) . | . . . Largest Inventory Capacity 15 | 8 15 15 Average Capacity 13 | 6 13 15 Most Carried 15 | 3 15 15 Average Carried 11 | 1 11 14 Final Capacity 15 | 8 15 15 Final Carried 15 | 3 15 13 Class Distribution -------------------- 100% | Mutant Dominant Class ---------------- Mutant | -10/Materials Mutant | -10/Mines Resources | -11 -10 -10 ----------- Run | Yrd Mat Min Matter Collected 742 | 95 431 216 Remotely . | . . . Salvage Created 783 | . 532 251 Parts 43 | . 35 8 Haulers Intercepted 1 | . 1 . Recyclers Shooed 1 | . . 1 Parts Field Recycled . | . . . Retrieved Matter . | . . . Parts Self-Destructed . | . . . Prevented . | . . . Kills | -11 -10 -10 ------- Run | Yrd Mat Min Combat Hostiles Destroyed 22 | . 11 11 Guns 7 | . 7 . Cannons 3 | . . 3 AOE 12 | . 4 8 Classes Destroyed 9 | . 8 1 Worker 2 | . 2 . Builder 1 | . 1 . Hauler 1 | . 1 . Recycler 3 | . 2 1 Operator 2 | . 2 . Watcher 1 | . 1 . Swarmer 3 | . 3 . Grunt 11 | . 8 3 Assembled 8 | . . 8 Best Kill Streak 7 | . 4 7 Combat Bots Only 7 | . 3 7 Max Kills in Single Turn 4 | . 4 3 Gunslinging . | . . . Exploded 3 | . 1 3 Melee . | . . . Uniques/NPCs Destroyed . | . . . Combat | -11 -10 -10 -------- Run | Yrd Mat Min Hostile Shots Fired 80 | . 35 45 Missed 22 | . 8 14 Damage Taken 1219 | . 472 747 Core 251 | . 51 200 Absorbed by Shields . | . . . Redirected to Shielding 11 | . 11 . Regen/Repaired (Parts) 32 | . 32 . Core Remaining (%) 100 | 100 . . Volleys Fired 63 | . 42 21 Largest 2 | . 2 2 Hottest 112 | . 50 112 Shots Fired 110 | . 73 37 Gun 59 | . 59 . Cannon 24 | . . 24 Launcher 27 | . 14 13 Special . | . . . Kinetic 59 | . 59 . Thermal . | . . . Explosive 27 | . 14 13 Electromagnetic 24 | . . 24 Robot Hit Streak 10 | . 8 10 Robot Miss Streak 3 | . 3 2 Penetration Max . | . . . Secondary Targets 1 | . 1 . Max Gunslinging Chain 1 | . 1 . Shots Hit Robots 77 | . 51 26 Core Hits 59 | . 37 22 Critical Kills . | . . . Critical Parts Destroyed . | . . . Critical Strikes 2 | . . 2 Corrupt 2 | . . 2 Melee Attacks 7 | . 3 4 Impact . | . . . Slashing . | . . . Piercing . | . . . Sneak Attacks 7 | . 3 4 Combat Hostiles . | . . . Follow-up Attacks . | . . . Damage Inflicted 1717 | . 863 854 Guns 315 | . 315 . Cannons 406 | . . 406 Explosions 988 | . 540 448 Melee . | . . . Ramming 8 | . 8 . Kinetic 315 | . 315 . Thermal 57 | . . 57 Explosive 931 | . 540 391 Electromagnetic 406 | . . 406 Impact . | . . . Slashing . | . . . Piercing . | . . . Highest Corruption 2 | . 2 2 Average Corruption 1 | . 1 2 Corruption Purged . | . . . Corruption Blocked . | . . . Effects 12 | . 6 6 Message Errors 3 | . 2 1 Matter Fused 3 | . 1 2 Heat Flow Errors 1 | . 1 . Data Loss (minor) 3 | . 1 2 Data Loss (major) 1 | . 1 . Alerts 1 | . . 1 Overload Shots . | . . . Overflow Damage 20 | . 20 . Projectiles . | . . . Explosions 20 | . 20 . Melee . | . . . Knockbacks . | . . . Impact . | . . . Kinetic . | . . . Secondary . | . . . Self-Inflicted Damage 231 | . 142 89 Shots 13 | . 9 4 Rammed 1 | . 1 . Targets Rammed 1 | . 1 . Kicked . | . . . Crushed . | . . . Highest Temperature 246 | . 120 246 Average Temperature 56 | . 21 79 Received Heat Transfer 396 | . 171 225 Siege Activations . | . . . Robots Corrupted . | . . . Combat Hostiles . | . . . Parts Fried 2 | . . 2 Impact Corruptions . | . . . Robots Melted . | . . . Combat Hostiles . | . . . Parts Melted . | . . . Heat Transferred 50 | . . 50 Parts Sabotaged . | . . . Parts Stolen . | . . . Parts Stripped . | . . . Power Chain Reactions 1 | . . 1 Alert | -11 -10 -10 ------- Run | Yrd Mat Min Peak Influence 204 | . 204 170 Initial 21 | . . 21 Average 81 | . 80 96 Maximum Alert Level 1 | . 1 . Low Security (%) 99 | 100 98 100 Level 1 . | . 1 . Level 2 . | . . . Level 3 . | . . . Level 4 . | . . . Level 5 . | . . . High Security . | . . . Max Security . | . . . Squads Dispatched 3 | . 3 . Investigation 1 | . 1 . Extermination . | . . . Reinforcement 2 | . 2 . Assault . | . . . Garrison . | . . . Intercept . | . . . Searches Triggered . | . . . Construction Impeded . | . . . Haulers Reinforced . | . . . Active Scanning Responses . | . . . Cargo Convoy Interrupts . | . . . Stealth | -11 -10 -10 --------- Run | Yrd Mat Min Distress Signals 1 | . . 1 Communications Jammed . | . . . Distress Signals . | . . . Times Spotted 33 | . 20 13 Peak Tracking Total 6 | . 4 6 Tactical Retreats . | . . . Traps | -11 -10 -10 ------- Run | Yrd Mat Min Traps Triggered 2 | . 2 . Indirectly . | . . . Trap Hack Attempts . | . . . Triggered . | . . . Disarmed . | . . . Reprogrammed . | . . . Reused . | . . . Traps Extracted . | . . . Installed . | . . . Triggered . | . . . Machines | -11 -10 -10 ---------- Run | Yrd Mat Min Machines Disabled 3 | . 2 1 Max in Single Turn 1 | . 1 1 Machines Repaired . | . . . Machines Dismantled . | . . . Machines Sabotaged . | . . . Overloaded Fab Kills . | . . . Hacking | -11 -10 -10 --------- Run | Yrd Mat Min Machines Accessed 7 | . 7 . Terminals 5 | . 5 . Fabricators . | . . . Repair Stations 1 | . 1 . Recycling Units 1 | . 1 . Scanalyzers . | . . . Garrison Access . | . . . Total Hacks 17 | . 17 . Successful 11 | . 11 . Failed 6 | . 6 . Catastrophic . | . . . Database Lockouts . | . . . Manual . | . . . Terminals 11 | . 11 . Fabricators . | . . . Repair Stations 4 | . 4 . Recycling Units 2 | . 2 . Scanalyzers . | . . . Garrison Access . | . . . Terminal Hacks 7 | . 7 . Record 2 | . 2 . Prototype ID Bank 1 | . 1 . Locate Traps 2 | . 2 . Investigation Status 1 | . 1 . Zone Layout 1 | . 1 . Fabricator Hacks . | . . . Repair Station Hacks 2 | . 2 . Scan Component 1 | . 1 . Repair 1 | . 1 . Recycling Unit Hacks 2 | . 2 . Report Inventory 1 | . 1 . Retrieve Components 1 | . 1 . Scanalyzer . | . . . Garrison Access Hacks . | . . . Unauthorized Hacks . | . . . Terminals . | . . . Fabricators . | . . . Repair Stations . | . . . Recycling Units . | . . . Scanalyzers . | . . . Garrison Access . | . . . Data Cores Recovered . | . . . Used . | . . . Hacking Detections 5 | . 5 . Full Trace Events 1 | . 1 . Feedback Events . | . . . Feedback Blocked . | . . . Robot Schematics Acquired . | . . . Robots Built . | . . . Authchips . | . . . Time . | . . . Total Robot Build Rating . | . . . Part Schematics Acquired . | . . . Parts Built . | . . . Authchips . | . . . Time . | . . . Total Part Build Rating . | . . . Parts Repaired 1 | . 1 . Time 26 | . 26 . Parts Recycled . | . . . Recycled Matter . | . . . Retrieved Matter . | . . . Retrieved Components 3 | . 3 . Parts Scanalyzed . | . . . Part Schematics Acquired . | . . . Parts Damaged . | . . . Bothacking | -11 -10 -10 ------------ Run | Yrd Mat Min Used RIF Installer . | . . . Robots Hacked 3 | . 2 1 Non-combat 3 | . 2 1 Combat . | . . . Robot Hacks Applied 6 | . 3 3 parse_system 1 | . . 1 no_distress 5 | . 3 2 Relay Couplers Released . | . . . Fabnet Peak Effective % . | . . . Robots Rewired . | . . . Allies Hacked . | . . . Hacks Repelled . | . . . Allies | -11 -10 -10 -------- Run | Yrd Mat Min Total Allies . | . . . Largest Group . | . . . Highest-Rated Group . | . . . Highest-Rated Ally . | . . . Total Orders . | . . . Ally Attacks . | . . . Total Damage . | . . . Kills . | . . . Allies Corrupted . | . . . Allies Melted . | . . . Intel | -11 -10 -10 ------- Run | Yrd Mat Min Robot Analysis Total . | . . . Derelict Logs Recovered . | . . . Drone Launches . | . . . Drone Recoveries . | . . . Exploration | -11 -10 -10 ------------- Run | Yrd Mat Min Turns Passed 2225 | 78 1581 566 Spaces Moved 1204 | 55 857 292 Core 26 | 23 2 1 Treads 1178 | 32 855 291 Legs . | . . . Wheels . | . . . Hover . | . . . Flight . | . . . Fastest Speed 50 | 50 160 160 Average Speed 159 | 124 161 161 Slowest Speed 550 | 160 550 550 Overloaded Moves . | . . . Propulsion Burnouts . | . . . Robots Hopped . | . . . Cave-ins Triggered . | . . . Exploration Rate (%) 49 | 4 91 52 Regions Visited 2 Branch Regions 1 Pre-discovered Areas . | . . . Known Exits Taken . | . . . Unknown Exits Taken 2 | 1 1 . Scrap Searched . | . . . Spaces Dug . | . . . Terrain Destroyed 155 | . 76 79 Melee . | . . . Projectile . | . . . AOE 155 | . 76 79 Terrain Rammed . | . . . Walls Destroyed . | . . . Machines Disabled . | . . . Actions | -11 -10 -10 --------- Run | Yrd Mat Min Total 1408 | 62 997 349 Wait 69 | . 48 21 Move 1202 | 54 856 292 Hop . | . . . Pick Up 26 | 3 21 2 Fast Attach 11 | 5 6 . Attach 3 | . 2 1 Detach 1 | . 1 . Swap 11 | . 6 5 Drop 14 | . 11 3 Fire 63 | . 42 21 Melee 7 | . 3 4 Ram . | . . . Kick . | . . . Crush 1 | . 1 . Escape Stasis . | . . . Rewire . | . . . Trap . | . . . Miscellaneous . | . . . Route ------- -11/Scrapyard -10/Materials (discovered 4 exits: [*Mat x2] / [*Min] / [*Sub]) -10/Mines (discovered 2 exits: [*Mat x2]) History --------- Turn | Location | Event 19 | -11/Scrapyard | Discovered new exit (range 16) 79 | -11/Scrapyard | Entered Materials 312 | -10/Materials | Build established: Mutant 464 | -10/Materials | Discovered new exit (range 8) 749 | -10/Materials | Discovered new exit (range 8) 1216 | -10/Materials | Discovered new exit (range 17) 1482 | -10/Materials | Repaired Lgt. Ion Engine 1504 | -10/Materials | Discovered new exit (range 16) 1660 | -10/Materials | Entered Mines 1763 | -10/Mines | Discovered new exit (range 10) 1775 | -10/Mines | Assembled infested the area 1832 | -10/Mines | Core integrity fell below 50% 1857 | -10/Mines | Destroyed 7 combat bots 2158 | -10/Mines | Discovered new exit (range 14) 2222 | -10/Mines | Core integrity fell below 20% 2226 | -10/Mines | Destroyed by D-53 Grenadier with Mini Grenade Launcher Last Messages --------------- Acquired 10 matter. U-05 Engineer builds a Wall. K-01 Serf collects debris. U-05 Engineer lays Concrete. K-01 Serf collects debris. U-05 Engineer lays Concrete. U-05 Engineer builds a Wall. K-01 Serf collects debris. U-05 Engineer lays Concrete. U-05 Engineer builds a Wall. K-01 Serf collects debris. System corrupted: IFF burst signal emitted. K-01 Serf collects debris. K-01 Serf cleans the Laser Drill. System corrupted: Matter fused (-5). EXIT=FOUND Grenade Launcher destroyed. The unstable cave ceiling collapses. HAHG/6#V=XLN%R2Y=MTSORBQH>EA WMV6S: Imp. Treads destroyed. Map ----- +----------------------------------------------------+ | | | | | | | | | | | | | | | | | | | | | | | | | | | | | | | | | | | | | | | ?????????????????????????????????????????????????? | | ?######################???##?????????????????????? | | ?# #### ###??? #??????????????? | | ?# """ """ """ ## ####???????????? | | ?# """ """ """ #???????????? | | ?# """ """ """ #???????????? | | ?# < @ d #???????????? | | ?# """ """ """ d k%????????? | | ?# """ """ """ #???????????? | | ?# """ """ "" # ####???????????? | | ?# % ##??##??????????????? | | ?################### ### ####???????????????????? | | ??## ###### ##??# #?# #??????????????????????? | | ?## ## #### ### #??????????????????????? | | ## #??????????????????????? | | # #??????????????????????? | | # """ %## #########??????????????????????? | | # """ ## #??????????????????????????????? | | # """ #??????????????????????????????? | | # #####??????????????????????????????? | | ##??????????????????????????????????? | | ##???????????????????????????????????? | | ## ###????????????????????????????????????? | | ### #??????????????????????????????????????? | | # #??# #??????????????????????????????????????? | | ####???# #??????????????????????????????????????? | | ???????# #??????????????????????????????????????? | | ???????# #??????????????????????????????????????? | | ???????# ###????????????????????????????????????? | | ???????# #????????????????????????????????????? | | ???????#### #????????????????????????????????????? | +----------------------------------------------------+ Best States ------------- Heat Dissipation 25 Energy Generation 14 Energy Capacity 250 Matter Stores 300 Matter Capacity 300 Sight Range 16 Terrain Scan Density 10 Weapon Shielding 33 Evasion (%) 50 Targeting Accuracy 5 Recoil Reduction 2 Item Schematics ----------------- None Robot Schematics ------------------ None Fabricated ------------ Nothing Alien Tech Used ----------------- None Achievements -------------- None Challenges ------------ None Game ------ Seed VoltaicExperimentalWand Manual? 0 Play Time 00:20:11 Cumulative 7.1 hours Start 2024.12.06 @ 17:33:35 End 2024.12.06 @ 17:52:02 Sessions 1 Manual Loads 0 Difficulty Rogue Special Mode None Game No. 13 Rogue 13 Adventurer 0 Explorer 0 Win Type - Total 0 Types 0/0/0/0/0/0/0/0/0 Lore% 2 Gallery% 10 Achievement% 11 Wizard Run 0 Options --------- Layout 2 ASCII 0 Keyboard 1 Movement Vi Keybinds 0 Fullscreen 2 Font 24/Smallcaps Map View 50x44 Zoom Use 0% Tactical HUD 0 Map Filters NONE Filters NONE Steam 1 RUN: 852c7658-12df-4a9a-9022-ef994c734d88